bitfinex/quotes_ETHUSD_20241023
["timestamp","ask_amount","ask_price","bid_price","bid_amount"]
[1729705681729,3.99906,2500.6,2500.0,4.07990433]
[1729705682134,0.8116,2500.7,2500.1,3.99982]
[1729705682370,3.99916,2500.6,2500.2,0.80797243]
[1729705682553,4.81056,2500.7,2500.1,0.07998763]
[1729705682753,8.80958,2500.7,2500.1,0.07998763]
[1729705682961,3.99916,2500.6,2500.0,0.07998766]
[1729705683165,3.99927,2500.5,2500.0,0.07998766]
[1729705683466,7.99881,2500.4,2499.9,0.7819]
[1729705683671,3.99937,2500.4,2499.9,1.560135]
[1729705683876,3.99958,2500.3,2499.9,1.560135]
[1729705684347,3.99937,2500.4,2499.9,1.560135]
[1729705689544,3.99937,2500.4,2499.9,0.7819]
[1729705690369,3.99953,2500.3,2499.9,0.7819]
[1729705690861,3.99937,2500.4,2499.9,0.7819]
[1729705691252,0.7992,2500.3,2499.6,0.8109]
[1729705691439,3.99976,2500.2,2499.6,3.8109]
[1729705691648,3.99976,2500.2,2499.7,0.78116]
[1729705691951,4.00011,2500.0,2499.6,0.8109]
[1729705692272,4.00016,2499.9,2499.6,0.8109]
[1729705693170,4.79882,2500.3,2499.6,0.8109]
[1729705693333,3.99962,2500.3,2499.7,4.00046]
[1729705693536,3.99962,2500.3,2499.7,4.0804611]
[1729705693963,4.7602,2500.5,2499.9,4.00014]
[1729705694165,8.75951,2500.5,2499.9,0.86570029]
[1729705694372,3.9994,2500.4,2499.9,0.86570029]
[1729705694872,0.7609,2500.5,2499.9,4.86572029]
[1729705695072,3.99905,2500.6,2499.9,4.86572029]
[1729705695393,3.99926,2500.5,2500.0,0.97551254]
[1729705695743,3.99926,2500.5,2499.9,4.86572029]
[1729705696152,0.7885,2500.7,2500.0,3.99987]
[1729705696353,3.99883,2500.8,2500.2,4.76361]
[1729705697576,3.99895,2500.7,2500.2,0.764]
[1729705697775,3.99883,2500.8,2500.2,4.76367]
[1729705698084,3.99883,2500.8,2500.3,0.48436544]
[1729705698387,3.99883,2500.8,2500.2,0.764]
[1729705698686,3.99883,2500.8,2500.2,4.76365]
[1729705698984,3.99883,2500.8,2500.2,4.84363436]
[1729705699283,3.99888,2500.7,2500.2,0.84398436]
[1729705699577,3.99888,2500.7,2500.2,1.7283608]
[1729705700185,3.99873,2500.8,2500.2,5.7280308]
[1729705700342,3.99873,2500.8,2500.2,0.9643608]
[1729705700548,7.99753,2500.8,2500.3,0.8311]
[1729705700948,3.9989,2500.7,2500.3,0.8311]
[1729705701359,3.99873,2500.8,2500.3,1.41062908]
[1729705701589,3.99873,2500.8,2500.3,0.8311]
[1729705701590,3.99901,2500.7,2500.3,0.8311]
[1729705703609,3.99888,2500.7,2500.3,0.8311]
[1729705705292,7.99785,2500.7,2500.3,0.8311]
[1729705705613,3.99888,2500.7,2500.3,0.8311]
[1729705705816,7.99788,2500.7,2500.3,0.8311]
[1729705705991,7.99787,2500.7,2500.3,0.8311]
[1729705706804,3.99911,2500.6,2500.2,0.8273]
[1729705707077,0.7539,2500.6,2500.0,0.8273]
[1729705707282,3.99959,2500.3,2500.0,0.8273]
[1729705708314,3.99969,2500.2,2499.7,0.8273]
[1729705708994,3.99984,2500.1,2499.7,0.8273]
[1729705710576,7.99979,2500.1,2499.7,0.8273]
[1729705710779,3.99984,2500.1,2499.7,0.8273]
[1729705711283,3.99971,2500.2,2499.7,0.8273]
[1729705711509,3.99971,2500.2,2499.7,2.01816239]
[1729705713182,3.99993,2500.1,2499.7,2.01816239]
[1729705713378,3.99993,2500.1,2499.7,0.8273]
[1729705714189,3.99953,2500.3,2499.7,4.82769]
[1729705716210,3.99971,2500.2,2499.7,0.8273]
[1729705716831,3.99953,2500.3,2499.7,0.8273]
[1729705716832,4.8149,2500.1,2499.7,0.8273]
[1729705717304,3.9999,2500.1,2499.7,0.8273]
[1729705719221,3.99987,2500.1,2499.7,0.8273]
[1729705719737,8.78773,2500.3,2499.7,0.8273]
[1729705719909,4.7881,2500.3,2499.7,0.8273]
[1729705720116,3.99986,2500.1,2499.7,0.8273]
[1729705721602,4.00002,2500.0,2499.4,7.00093]
[1729705721803,4.00032,2499.8,2499.2,0.7939]
[1729705722025,4.5412394,2499.9,2499.2,0.7939]
[1729705722026,4.00048,2499.7,2499.2,0.7939]
[1729705722200,4.0008,2499.5,2499.2,0.7939]
[1729705723340,4.00066,2499.6,2499.2,0.7939]
[1729705723822,4.5412394,2499.9,2499.2,0.7939]
[1729705724001,4.00066,2499.6,2499.2,0.7939]
[1729705725133,4.0005,2499.7,2499.2,0.7939]
[1729705727604,4.00067,2499.6,2499.2,0.7939]
[1729705728103,4.0005,2499.7,2499.2,0.7939]
[1729705729447,4.00068,2499.6,2499.2,0.7939]
[1729705730345,5.61610521,2499.6,2499.2,0.7939]
[1729705730915,1.61542521,2499.6,2499.2,0.7939]
[1729705732239,5.61593521,2499.7,2499.2,0.7939]
[1729705732557,1.61542521,2499.6,2499.2,0.7939]
[1729705732918,1.61542521,2499.5,2499.2,0.7939]
[1729705733337,1.61542521,2499.8,2499.3,4.81411]
[1729705733536,1.61542521,2499.8,2499.3,0.8131]
[1729705733932,1.61542521,2499.7,2499.3,0.8131]
[1729705734944,1.61542521,2499.5,2499.3,0.8131]
[1729705735117,5.61608521,2499.6,2499.3,0.8131]
[1729705735320,1.61542521,2499.5,2499.3,0.8131]
[1729705735536,1.61542521,2499.7,2499.3,0.8131]
[1729705736146,1.61542521,2499.6,2499.3,0.8131]
[1729705737057,1.61542521,2499.5,2499.3,0.8131]
[1729705737223,1.61542521,2499.6,2499.3,0.8131]
[1729705738253,1.61542521,2499.5,2499.3,0.8131]
[1729705740590,1.61542521,2499.6,2499.3,0.8131]
[1729705741085,1.61542521,2499.5,2499.3,0.8131]
[1729705742096,1.61542521,2499.4,2499.1,3.0]
[1729705742455,1.61542521,2499.4,2499.0,0.8241]
[1729705742456,5.61678521,2499.2,2499.0,0.8241]
[1729705742660,1.61542521,2499.1,2498.6,4.82631]
[1729705742871,1.61542521,2499.0,2498.6,4.82631]
[1729705743085,1.61542521,2498.9,2498.6,4.82631]
[1729705743459,1.61542521,2499.0,2498.7,4.00205]
[1729705744083,1.61542521,2498.9,2498.7,4.00205]
[1729705744286,1.61542521,2498.8,2498.6,4.82627]
[1729705745100,1.61542521,2498.8,2498.6,0.8241]
[1729705745261,4.826,2499.1,2498.6,0.8241]
[1729705745262,1.61542521,2498.7,2498.6,0.8241]
[1729705745462,1.61542521,2498.7,2498.3,3.8029]
[1729705745785,2.09802521,2499.0,2498.3,3.8029]
[1729705745786,1.61542521,2498.6,2498.3,3.8029]
[1729705746155,2.09802521,2499.0,2498.3,3.8029]
[1729705746156,1.61542521,2498.4,2498.3,0.8029]
[1729705746378,1.61542521,2498.4,2498.1,0.7523]
[1729705746598,1.61542521,2498.5,2498.1,4.75534]
[1729705746813,1.61542521,2498.7,2498.2,4.75505]
[1729705746964,1.61542521,2498.7,2498.3,4.08266128]
[1729705747162,5.29843,2499.0,2498.4,4.00247]
[1729705747163,1.61542521,2498.8,2498.4,4.00247]
[1729705747401,0.8141,2499.0,2498.4,0.7819]
[1729705747593,14.69947952,2499.4,2498.7,0.7819]
[1729705747594,2.38472521,2499.2,2498.7,0.7819]
[1729705747808,2.38472521,2499.2,2498.7,4.78396]
[1729705747809,1.61542521,2499.2,2498.7,4.78396]
[1729705748166,1.61542521,2499.2,2498.7,4.78391]
[1729705748394,4.77033,2499.4,2498.7,4.78389]
[1729705748898,4.77033,2499.4,2498.7,8.78588]
[1729705749092,4.77033,2499.4,2498.7,5.67048151]
[1729705749400,4.0013,2499.2,2498.7,1.66849151]
[1729705751906,4.00049,2499.7,2498.9,0.7811]
[1729705752063,4.00049,2499.7,2499.2,0.8064]
[1729705752263,4.82732,2499.8,2499.2,4.80766]
[1729705752580,4.00048,2499.7,2499.2,0.8064]
[1729705754283,2.08486484,2499.8,2499.2,0.8064]
[1729705754284,4.82733,2499.8,2499.2,0.8064]
[1729705756185,4.00048,2499.7,2499.2,0.8064]
[1729705759385,7.75152836,2499.9,2499.2,4.80765]
[1729705759386,4.00034,2499.8,2499.2,4.80765]
[1729705759586,4.00034,2499.8,2499.2,4.88766658]
[1729705759786,4.00034,2499.8,2499.3,0.88890866]
[1729705760422,3.99977,2500.2,2499.7,0.7708]
[1729705760977,0.8154,2500.3,2499.7,0.7708]
[1729705761195,4.81468,2500.5,2499.8,0.08000351]
[1729705761514,4.81468,2500.5,2499.9,0.7708]
[1729705761515,3.99937,2500.4,2499.9,0.7708]
[1729705761721,3.99937,2500.4,2499.9,1.55589835]
[1729705762008,3.99937,2500.4,2499.9,1.63589319]
[1729705762579,3.9992,2500.5,2499.9,5.63604319]
[1729705763473,3.9991,2500.6,2500.0,3.99997]
[1729705763675,3.99872,2500.8,2500.1,5.77949617]
[1729705763888,3.99872,2500.8,2500.2,0.8133]
[1729705764414,7.99752,2500.8,2500.2,0.8133]
[1729705764612,3.99872,2500.8,2500.2,0.8133]
[1729705764813,3.75122836,2500.8,2500.2,0.8133]
[1729705764998,3.99869,2500.9,2500.2,4.89280471]
[1729705765289,3.99874,2500.8,2500.3,3.8779326]
[1729705765514,3.99874,2500.8,2500.3,3.95791413]
[1729705765687,3.99869,2500.9,2500.4,0.787]
[1729705766019,3.99872,2500.8,2500.4,0.787]
[1729705766703,3.99864,2500.9,2500.4,0.787]
[1729705766896,3.99864,2500.9,2500.5,0.87444241]
[1729705767304,3.99834,2501.1,2500.5,0.87444241]
[1729705767503,3.99778,2501.4,2500.6,4.88507767]
[1729705767707,3.99778,2501.4,2500.8,4.80479]
[1729705767890,3.99772,2501.5,2500.9,0.07996299]
[1729705768104,3.99772,2501.5,2501.0,0.8061]
[1729705768720,3.99746,2501.6,2501.0,0.8061]
[1729705769391,3.99746,2501.6,2501.1,0.07995711]
[1729705769727,3.99746,2501.6,2501.0,0.88605642]
[1729705770408,3.99762,2501.5,2501.0,0.88605642]
[1729705770588,3.99762,2501.5,2501.0,1.29457464]
[1729705770786,7.74866836,2501.6,2501.0,1.29457464]
[1729705770988,3.99744,2501.6,2501.1,0.07995806]
[1729705771186,3.99744,2501.6,2501.2,0.7852]
[1729705774413,3.99762,2501.5,2501.2,0.7852]
[1729705775120,3.9973,2501.7,2501.2,0.7852]
[1729705775325,3.9973,2501.7,2501.2,1.27153976]
[1729705775700,3.99719,2501.8,2501.2,1.27153976]
[1729705776390,3.99707,2501.9,2501.3,0.0799484]
[1729705776606,3.99707,2501.9,2501.4,0.792]
[1729705776810,3.99676,2502.1,2501.6,0.792]
[1729705777049,3.99676,2502.1,2501.7,0.38719477]
[1729705777772,7.9935,2502.1,2501.7,0.38719477]
[1729705778070,3.99674,2502.1,2501.6,0.792]
[1729705778210,7.99349,2502.1,2501.6,0.792]
[1729705778555,7.99349,2502.1,2501.6,0.87193981]
[1729705778849,3.99673,2502.1,2501.6,0.87193981]
[1729705779026,3.99682,2502.0,2501.6,0.792]
[1729705779226,3.99682,2502.0,2501.7,0.3792]
[1729705779647,3.99673,2502.1,2501.7,0.3792]
[1729705780448,3.99648,2502.2,2501.8,0.8262]
[1729705780814,3.99614,2502.5,2501.8,0.8262]
[1729705781009,3.99618,2502.4,2502.0,0.8262]
[1729705781214,3.99614,2502.5,2502.0,0.8262]
[1729705781215,7.99211,2502.5,2502.0,0.8262]
[1729705781416,7.99215,2502.5,2502.0,1.21681347]
[1729705781875,3.9964,2502.3,2502.0,1.21681347]
[1729705782155,3.99619,2502.4,2502.0,0.8262]
[1729705783324,3.99619,2502.4,2501.7,3.3792]
[1729705783325,3.99634,2502.3,2501.7,3.0]
[1729705783741,3.99634,2502.3,2501.7,3.99726]
[1729705783938,3.99675,2502.1,2501.4,3.99774]
[1729705784149,4.75593,2502.5,2501.4,3.99774]
[1729705784150,3.99704,2501.9,2501.4,0.82554481]
[1729705784316,3.75122836,2502.0,2501.2,4.48433976]
[1729705784516,3.99709,2501.9,2501.3,3.99791]
[1729705784751,3.99683,2502.0,2501.4,0.07994377]
[1729705784942,3.99683,2502.0,2501.4,4.07763377]
[1729705786185,3.99696,2501.9,2501.4,0.07994377]
[1729705786320,3.99696,2501.9,2501.5,0.1706]
[1729705786922,3.99683,2502.0,2501.5,0.1706]
[1729705788920,3.9967,2502.1,2501.6,0.07994266]
[1729705789138,3.9967,2502.1,2501.6,0.1706]
[1729705790137,3.99688,2502.0,2501.6,0.1706]
[1729705790339,7.74779836,2502.2,2501.6,0.1706]
[1729705790741,3.99681,2502.0,2501.6,0.1706]
[1729705792339,3.99666,2502.1,2501.6,0.1706]
[1729705793037,0.7721,2502.3,2501.6,4.16795]
[1729705793241,3.99587,2502.6,2502.0,3.99678]
[1729705793442,3.99585,2502.6,2502.1,0.1706]
[1729705794245,3.9957,2502.7,2502.1,0.1706]
[1729705794839,5.61806384,2502.8,2502.1,4.16714]
[1729705795045,3.99561,2502.8,2502.3,0.1706]
[1729705796681,3.99537,2502.9,2502.4,0.07991704]
[1729705796850,3.99537,2502.9,2502.3,0.1706]
[1729705796851,3.99554,2502.8,2502.3,0.1706]
[1729705797174,3.99537,2502.9,2502.4,0.07991336]
[1729705797386,11.74208836,2502.9,2502.3,0.1706]
[1729705797679,7.74659836,2502.9,2502.4,0.07991331]
[1729705797894,3.99537,2502.9,2502.4,0.07991331]
[1729705798438,3.99537,2502.9,2502.5,0.1706]
[1729705799292,3.99517,2503.1,2502.5,0.1706]
[1729705799482,3.99483,2503.3,2502.7,0.1706]
[1729705799683,3.99483,2503.3,2502.6,4.07564823]
[1729705799684,3.99492,2503.2,2502.8,0.25050114]
[1729705799986,3.99474,2503.3,2502.8,0.1706]
[1729705800398,3.99459,2503.4,2502.8,0.1706]
[1729705800692,4.53682836,2503.5,2503.0,0.1706]
[1729705800693,3.99443,2503.5,2503.0,0.1706]
[1729705800899,3.99443,2503.5,2502.9,4.07517003]
[1729705800900,0.03544123,2503.4,2503.2,0.1706]
[1729705801078,7.74508836,2503.9,2503.3,0.25048439]
[1729705801079,3.994,2503.8,2503.3,0.25048439]
[1729705801280,0.03712131,2503.7,2503.3,0.1706]
[1729705801484,3.99417,2503.7,2503.3,0.1706]
[1729705801671,0.03712772,2503.6,2503.3,0.1706]
[1729705802287,3.99441,2503.5,2503.3,0.1706]
[1729705802597,0.03712772,2503.4,2503.3,0.1706]
[1729705802963,3.99404,2503.8,2503.3,0.1706]
[1729705803297,3.99372,2504.0,2503.5,0.1706]
[1729705803474,3.9934,2504.2,2503.5,0.1706]
[1729705803674,3.99376,2504.0,2503.5,0.1706]
[1729705803876,3.9934,2504.2,2503.6,0.07987202]
[1729705804085,3.99356,2504.1,2503.5,0.1706]
[1729705804292,3.99356,2504.1,2503.6,0.07987169]
[1729705804808,3.75122836,2504.3,2503.5,0.98658]
[1729705804964,3.99417,2503.7,2503.5,0.1706]
[1729705805163,3.99426,2503.6,2503.1,0.1706]
[1729705805509,3.99426,2503.6,2503.1,0.587169]
[1729705806376,3.99426,2503.6,2503.2,0.07988867]
[1729705806578,3.99426,2503.6,2503.1,0.1706]
[1729705806965,3.99448,2503.5,2503.1,0.1706]
[1729705807421,3.99426,2503.6,2503.1,0.1706]
[1729705807422,3.99457,2503.4,2503.1,0.1706]
[1729705809406,3.99456,2503.4,2503.1,0.1706]
[1729705809991,7.98921,2503.4,2503.1,0.1706]
[1729705810203,3.99456,2503.4,2503.1,0.1706]
[1729705810581,3.99483,2503.3,2502.8,0.59520512]
[1729705810777,3.99489,2503.2,2502.8,0.59520512]
[1729705811190,7.98874,2503.6,2502.9,4.07517889]
[1729705811508,3.99434,2503.6,2503.0,4.6157684]
[1729705811707,3.99434,2503.6,2503.1,0.07989201]
[1729705811907,3.99453,2503.5,2503.0,0.1706]
[1729705812075,3.99478,2503.3,2503.0,0.1706]
[1729705812273,3.99478,2503.3,2502.8,0.42460512]
[1729705812274,3.9952,2503.1,2502.6,0.1706]
[1729705812512,3.9952,2503.0,2502.6,0.1706]
[1729705812811,3.99506,2503.1,2502.6,0.1706]
[1729705813393,3.99473,2503.3,2502.7,0.07991018]
[1729705813696,0.03528953,2503.2,2502.7,0.07991018]
[1729705813900,0.03528953,2503.2,2502.7,0.9041292]
[1729705814082,4.03018953,2503.2,2502.7,0.9041292]
[1729705814282,8.02517953,2503.2,2502.7,0.82421902]
[1729705814495,4.03018953,2503.2,2502.7,0.82421902]
[1729705815774,0.03528953,2503.2,2502.7,0.82421902]
[1729705815973,0.03528953,2503.2,2502.9,0.1706]
[1729705816169,3.99473,2503.3,2502.9,0.1706]
[1729705816370,0.03529593,2503.1,2502.9,0.1706]
[1729705816604,3.99473,2503.3,2502.9,0.1706]
[1729705816810,0.03527672,2503.0,2502.9,0.1706]
[1729705817014,3.99473,2503.3,2502.9,0.1706]
[1729705817182,0.03527672,2503.0,2502.9,0.1706]
[1729705817508,3.99492,2503.2,2502.9,0.1706]
[1729705817892,0.03527672,2503.1,2502.9,0.1706]
[1729705819949,4.03033672,2503.1,2502.9,0.1706]
[1729705820120,3.9957,2502.7,2502.4,0.1706]
[1729705820543,0.03527672,2502.6,2502.4,0.1706]
[1729705820758,3.99561,2502.8,2502.4,0.1706]
[1729705820922,4.03127672,2502.5,2502.4,0.1706]
[1729705821123,4.03127672,2502.5,2502.1,3.99663]
[1729705821124,0.03527672,2502.5,2502.1,3.99663]
[1729705821355,3.99576,2502.7,2502.1,0.816409]
[1729705821642,0.03527672,2502.4,2502.1,0.816409]
[1729705821822,0.833,2502.5,2502.2,0.07991785]
[1729705822162,0.833,2502.0,2501.4,0.1706]
[1729705822443,3.99753,2501.6,2501.1,0.1706]
[1729705822749,3.99752,2501.6,2501.1,0.1706]
[1729705822926,3.9976,2501.5,2501.1,0.1706]
[1729705823552,3.99783,2501.4,2501.1,0.1706]
[1729705824348,3.99769,2501.5,2501.1,0.1706]
[1729705826780,3.99714,2501.8,2501.1,0.1706]
[1729705826978,3.9957,2502.7,2501.3,3.99791]
[1729705826979,4.78759,2502.2,2501.3,3.99791]
[1729705827266,3.99664,2502.1,2501.4,0.25054353]
[1729705827431,3.99689,2502.0,2501.5,0.07994373]
[1729705827759,3.99696,2501.9,2501.5,0.07994373]
[1729705827964,3.99696,2501.9,2501.4,0.1706]
[1729705828545,3.75122836,2501.5,2500.7,0.1706]
[1729705828747,3.75122836,2501.2,2500.8,0.07996106]
[1729705828942,3.99767,2501.5,2500.8,4.07859106]
[1729705829242,3.75122836,2501.5,2500.8,0.82480511]
[1729705829444,3.99807,2501.3,2500.7,0.1706]
[1729705829976,3.99807,2501.3,2500.7,3.1706]
[1729705830291,11.74661836,2501.5,2500.8,0.07996294]
[1729705830573,7.74885836,2501.5,2500.8,4.07864294]
[1729705830758,11.74657836,2501.5,2500.8,4.07864294]
[1729705831268,3.99785,2501.4,2500.7,7.16939]
[1729705831629,3.99785,2501.4,2500.7,3.1706]
[1729705831831,3.99813,2501.2,2500.7,3.1706]
[1729705832077,3.99813,2501.2,2500.7,0.1706]
[1729705832078,3.9982,2501.2,2500.7,0.1706]
[1729705832230,7.83226706,2501.1,2500.7,0.1706]
[1729705832539,3.83390706,2501.1,2500.7,0.1706]
[1729705833973,3.83390706,2501.1,2500.5,3.99919]
[1729705833974,8.61537477,2501.1,2500.5,0.0799716]
[1729705834177,7.83216706,2501.1,2500.5,0.0799716]
[1729705834669,7.83216706,2501.1,2500.4,4.16991]
[1729705834968,11.83048706,2501.1,2500.4,4.16991]
[1729705835138,7.83216706,2501.1,2500.5,0.07997514]
[1729705835337,11.83050706,2501.1,2500.4,4.16991]
[1729705835963,3.9984,2501.0,2500.4,4.16991]
[1729705836168,0.08187079,2501.0,2500.4,4.16991]
[1729705837054,4.08033079,2501.0,2500.4,0.1706]
[1729705837372,1.2648527,2501.0,2500.4,4.16994]
[1729705837977,0.08082969,2501.0,2500.4,4.16994]
[1729705838138,0.08082969,2501.0,2500.5,0.07997516]
[1729705838343,0.08082969,2501.0,2500.4,4.16994]
[1729705838939,4.07923969,2501.0,2500.4,4.16994]
[1729705839282,0.08082969,2501.0,2500.4,4.16994]
[1729705839679,0.08082969,2501.0,2500.5,4.07915515]
[1729705839868,0.08082969,2501.0,2500.6,3.99902]
[1729705840073,0.08082969,2501.0,2500.7,0.1706]
[1729705840378,3.99783,2501.4,2500.8,4.07866367]
[1729705840615,0.0813614,2500.9,2500.8,0.07996367]
[1729705840789,0.0813614,2500.9,2500.7,4.1694]
[1729705840985,7.74918836,2501.3,2500.7,4.1694]
[1729705841158,0.08139989,2500.9,2500.7,4.1694]
[1729705841359,0.08139989,2500.9,2500.8,3.99872]
[1729705841558,0.07868656,2500.9,2500.8,3.99872]
[1729705841781,3.82917989,2501.4,2500.7,4.986312]
[1729705841967,3.75122836,2501.3,2500.7,8.985092]
[1729705842168,0.07868656,2500.9,2500.7,8.985092]
[1729705842367,3.75122836,2501.3,2500.8,0.8985092]
[1729705842548,0.07871223,2501.2,2500.8,0.8985092]
[1729705842748,3.75122836,2501.3,2500.8,0.8985092]
[1729705843192,0.07871223,2501.2,2500.7,4.16938]
[1729705844186,4.07681223,2501.2,2500.7,0.1706]
[1729705844418,0.07871223,2501.2,2500.7,4.16947]
[1729705847488,0.07871223,2501.2,2500.8,3.99865]
[1729705847798,7.74899836,2501.4,2500.8,3.99865]
[1729705848004,0.07871223,2501.1,2500.8,3.99865]
[1729705848201,7.74899836,2501.4,2500.8,4.815462]
[1729705848681,0.07851223,2501.3,2500.8,4.815462]
[1729705848877,0.07851223,2501.3,2500.8,0.816812]
[1729705849069,0.07851223,2501.3,2500.7,0.1706]
[1729705849805,0.07851223,2501.3,2500.8,3.99871]
[1729705850977,0.07851223,2501.3,2500.7,0.1706]
[1729705850978,4.07645223,2501.3,2500.7,3.99886]
[1729705851176,4.07645223,2501.3,2501.0,0.1706]
[1729705851177,0.07851223,2501.3,2501.0,0.1706]
[1729705851503,3.99767,2501.5,2501.0,0.1706]
[1729705851708,0.07855072,2501.2,2501.1,4.07820166]
[1729705851935,3.99688,2502.0,2501.4,3.99761]
[1729705852241,7.74739836,2502.4,2501.2,0.1706]
[1729705852242,0.07609741,2501.9,2501.6,4.16797]
[1729705852531,4.76213,2502.4,2501.7,4.42193075]
[1729705852845,3.9967,2502.1,2501.6,0.1706]
[1729705853003,3.99683,2502.0,2501.6,0.1706]
[1729705853328,4.07316474,2502.0,2501.6,0.1706]
[1729705853830,4.07316474,2502.0,2501.3,0.1706]
[1729705853831,3.99708,2501.9,2501.3,0.1706]
[1729705854002,3.99708,2501.9,2501.3,1.287278]
[1729705854206,4.07362299,2501.8,2501.3,1.287278]
[1729705854408,3.99736,2501.7,2501.3,0.1706]
[1729705854605,3.99728,2501.7,2501.3,0.1706]
[1729705854838,0.07644376,2501.6,2501.3,0.1706]
[1729705855134,4.07389376,2501.6,2501.1,0.1706]
[1729705856232,0.07644376,2501.6,2501.2,4.07795211]
[1729705856392,3.99734,2501.7,2501.2,0.86637471]
[1729705856594,0.07632191,2501.5,2501.2,0.86637471]
[1729705856843,4.51712836,2502.0,2501.2,0.86637471]
[1729705856844,4.76281,2502.0,2501.4,3.99776]
[1729705857195,4.76281,2502.0,2501.3,3.99792]
[1729705857401,3.99703,2501.9,2501.4,0.48642947]
[1729705857601,3.99696,2501.9,2501.3,3.99783]
[1729705858535,3.99696,2501.9,2501.3,7.99565]
[1729705858935,8.49403836,2502.0,2501.3,7.99565]
[1729705858936,4.74281,2502.0,2501.4,4.07769647]
[1729705859096,3.9965,2502.2,2501.6,3.99736]
[1729705859452,6.9964,2502.3,2501.5,4.18808]
[1729705859453,3.99664,2502.1,2501.5,4.18808]
[1729705859595,3.99664,2502.1,2501.5,8.18558]
[1729705859797,3.99664,2502.1,2501.5,4.18808]
[1729705860451,3.99649,2502.2,2501.6,0.07993985]
[1729705860600,4.7555,2502.3,2501.7,3.99727]
[1729705860943,4.7555,2502.3,2501.8,0.40772099]
[1729705861497,3.9964,2502.3,2501.8,0.40772099]
[1729705861731,3.99569,2502.7,2502.0,3.75122836]
[1729705861732,0.7619,2502.7,2502.0,3.75122836]
[1729705861941,7.99094,2502.9,2502.3,3.99619]
[1729705862108,7.99094,2502.9,2502.3,4.18679]
[1729705862301,3.99547,2502.9,2502.4,3.99613]
[1729705862607,3.99547,2502.9,2502.4,4.07604444]
[1729705862806,0.7619,2503.0,2502.4,0.07991444]
[1729705863202,3.99516,2503.1,2502.5,3.996]
[1729705863203,7.99028,2503.1,2502.5,3.996]
[1729705863359,3.99512,2503.1,2502.5,3.99591]
[1729705863555,3.99489,2503.2,2502.7,3.99568]
[1729705864954,3.99511,2503.1,2502.6,4.59401244]
[1729705865250,4.82422,2503.4,2502.7,3.9956]
[1729705865426,3.99488,2503.2,2502.7,3.9956]
[1729705866150,3.99505,2503.1,2502.7,3.9956]
[1729705866454,3.99488,2503.2,2502.7,3.9956]
[1729705867019,7.98988,2503.2,2502.7,3.9956]
[1729705867214,3.99488,2503.2,2502.7,3.9956]
[1729705867754,3.99481,2503.3,2502.8,3.9955]
[1729705867968,3.99467,2503.4,2502.9,3.99525]
[1729705868256,3.99467,2503.4,2502.9,7.99052]
[1729705868553,3.99467,2503.4,2502.9,3.99525]
[1729705868773,3.99434,2503.6,2503.1,0.1906]
[1729705868917,3.99443,2503.5,2503.1,0.1906]
[1729705869363,0.7901,2503.7,2503.1,0.1906]
[1729705869665,4.0494375,2503.6,2503.1,4.26542205]
[1729705869962,0.0551775,2503.6,2503.1,8.26037205]
[1729705870165,0.0551775,2503.6,2503.1,8.18048]
[1729705870333,0.0551775,2503.6,2503.2,4.07477045]
[1729705870521,0.0551775,2503.6,2503.3,3.99471]
[1729705870725,4.81905,2503.9,2503.3,3.99471]
[1729705870929,6.99338,2504.2,2503.4,4.26504564]
[1729705870930,0.05174883,2503.5,2503.4,4.26504564]
[1729705871131,3.99345,2504.1,2503.5,3.99436]
[1729705871338,3.99331,2504.2,2503.7,0.1906]
[1729705871539,3.99368,2504.0,2503.7,0.1906]
[1729705871821,3.99362,2504.0,2503.7,0.1906]
[1729705872455,7.98733,2504.0,2503.7,0.1906]
[1729705872663,3.99362,2504.0,2503.7,0.1906]
[1729705873661,3.9939,2503.9,2503.4,0.1906]
[1729705874050,3.99393,2503.8,2503.4,0.1906]
[1729705874843,3.99412,2503.7,2503.1,0.1906]
[1729705875256,3.99393,2503.8,2503.1,4.1856]
[1729705875457,3.99393,2503.8,2503.1,0.1906]
[1729705875660,3.99409,2503.7,2503.1,4.18562]
[1729705876054,0.85124584,2503.8,2503.2,0.07988555]
[1729705876285,4.84518584,2503.8,2503.1,4.18562]
[1729705876972,3.99409,2503.7,2503.1,4.18562]
[1729705877273,3.99409,2503.7,2503.1,0.1906]
[1729705877455,5.25313442,2503.7,2503.1,3.1906]
[1729705877848,1.25904442,2503.7,2503.1,3.1906]
[1729705878089,1.25904442,2503.7,2503.1,7.18555]
[1729705879673,5.25314442,2503.7,2503.1,7.18555]
[1729705880282,1.25904442,2503.7,2503.1,11.1805]
[1729705880489,1.25904442,2503.7,2503.2,4.07474567]
[1729705880690,1.25904442,2503.7,2503.3,0.1906]
[1729705880843,7.98774,2503.9,2503.3,0.1906]
[1729705881368,7.98774,2503.9,2503.3,0.27048568]
[1729705881575,7.98771,2503.9,2503.3,0.27048569]
[1729705881797,3.99385,2503.9,2503.3,0.1906]
[1729705882364,3.99363,2504.0,2503.4,3.99455]
[1729705882565,0.798717,2503.9,2503.4,3.99455]
[1729705882785,0.798717,2503.9,2503.3,4.18518]
[1729705882995,0.798717,2503.9,2503.3,8.1798]
[1729705883600,0.798717,2503.9,2502.9,7.5248263]
[1729705883601,0.7742,2504.3,2503.6,0.1906]
[1729705883908,4.76747,2504.3,2503.7,3.99406]
[1729705884106,4.76747,2504.3,2503.6,4.18472]
[1729705884107,3.99337,2504.2,2503.6,4.18472]
[1729705884265,4.470117,2504.2,2503.6,4.18472]
[1729705884667,0.04313544,2504.1,2503.6,8.17889]
[1729705884888,0.04313544,2504.1,2503.6,8.17888]
[1729705885079,0.04313544,2504.1,2503.6,4.18472]
[1729705885292,0.04313544,2504.1,2503.7,3.99408]
[1729705885487,0.04313544,2504.1,2503.6,4.18472]
[1729705887205,4.03665544,2504.1,2503.6,0.1906]
[1729705887415,3.9937,2504.0,2503.6,0.1906]
[1729705887967,0.04313544,2503.9,2503.6,0.1906]